[Event "41st Bangladesh U-20 Girls 2023"]
[Site "Dhaka"]
[Date "2023.12.27"]
[Round "4.2"]
[White "Wadifa, Ahmed"]
[Black "Kazi Zarin, Tasnim"]
[Result "1-0"]
[ECO "C79"]
[WhiteElo "1758"]
[BlackElo "1748"]
[Annotator "NA"]
[PlyCount "87"]
[EventDate "2023.12.24"]
[EventType "swiss"]
[EventCountry "BAN"]
[SourceTitle "playchess.com"]
[Source "ChessBase"]
[SourceQuality "1"]
[TimeControl "5400+30"]

1. e4 {[%emt 0:00:02]} e5 {[%emt 0:06:38]} 2. Nf3 {[%emt 0:00:09]} Nc6 {[%emt 0:00:24]} 3. Bb5 {[%emt 0:00:07]} a6 {[%emt 0:00:06]} 4. Ba4 {[%emt 0:00:04]} Nf6 {[%emt 0:00:04]} 5. O-O {[%emt 0:00:07]} d6 {[%emt 0:00:03]} 6. Re1 {[%emt 0:00:08]} b5 {[%emt 0:00:09]} 7. Bb3 {[%emt 0:00:05]} Na5 {[%emt 0:00:06]} 8. d4 {[%emt 0:00:11]} Nxb3 {[%emt 0:00:07]} 9. axb3 {[%emt 0:00:09]} Bb7 {[%emt 0:00:06]} 10. d5 {[%emt 0:10:08]} c6 {[%emt 0:06:43]} 11. c4 {[%emt 0:00:57]} cxd5 {[%emt 0:01:48]} 12. cxd5 {[%emt 0:03:12]} Be7 {[%emt 0:06:44]} 13. Nbd2 {[%emt 0:01:53]} O-O {[%emt 0:03:31]} 14. b4 {[%emt 0:04:28]} Nd7 {[%emt 0:05:50]} 15. Nb3 {[%emt 0:00:55]} Nb6 {[%emt 0:06:33]} 16. Na5 {[%emt 0:01:18]} Qd7 {[%emt 0:02:00]} 17. Be3 {[%emt 0:23:53]} Nc4 {[%emt 0:01:38]} 18. Nxc4 {[%emt 0:00:47]} bxc4 {[%emt 0:00:04]} 19. Nd2 {[%emt 0:00:20]} Rfc8 {[%emt 0:05:34]} 20. Qc2 {[%emt 0:01:01]} f5 {[%emt 0:04:38]} 21. f3 {[%emt 0:02:14]} Bh4 {[%emt 0:03:57]} 22. Rec1 {[%emt 0:01:13]} f4 {[%emt 0:05:30]} 23. Bf2 {[%emt 0:00:36]} Bxf2+ {[%emt 0:02:33]} 24. Kxf2 {[%emt 0:00:02]} Qb5 {[%emt 0:03:32]} 25. Qc3 {[%emt 0:01:42]} a5 {[%emt 0:00:33]} 26. Rxa5 {[%emt 0:02:00]} Rxa5 {[%emt 0:00:14]} 27. bxa5 {[%emt 0:00:02]} Ba6 {[%emt 0:00:08]} 28. g3 {[%emt 0:03:41]} fxg3+ {[%emt 0:04:27]} 29. hxg3 {[%emt 0:00:03]} Rb8 {[%emt 0:02:59]} 30. Nxc4 {[%emt 0:09:43]} Qc5+ {[%emt 0:03:35]} 31. Kg2 {[%emt 0:00:01]} Bxc4 {[%emt 0:06:31]} 32. Qxc4 {[%emt 0:00:13]} Qxa5 {[%emt 0:00:36]} 33. Rc2 {[%emt 0:00:14]} h6 {[%emt 0:03:37]} 34. Qc6 {[%emt 0:03:39]} Qa1 {[%emt 0:00:54]} 35. Qxd6 {[%emt 0:12:45]} Rxb2 {[%emt 0:00:10]} 36. Qe6+ {[%emt 0:00:34]} Kh7 {[%emt 0:01:07]} 37. Qf5+ {[%emt 0:07:54]} Kh8 {[%emt 0:00:39]} 38. Rxb2 {[%emt 0:00:19]} Qxb2+ {[%emt 0:00:05]} 39. Kh3 {[%emt 0:00:05]} Qd4 {[%emt 0:08:37]} 40. Qf8+ {[%emt 0:01:12]} Kh7 {[%emt 0:00:08]} 41. d6 {[%emt 0:01:00]} h5 {[%emt 0:01:29]} 42. Qf5+ {[%emt 0:01:22]} Kh6 {[%emt 0:01:42]} 43. Kh4 {[%emt 0:00:52]} Qd2 {[%emt 0:00:31]} 44. Qxh5# {[%emt 0:00:04]} 1-0

[Event "41st Bangladesh U-20 Girls 2023"]
[Site "Dhaka"]
[Date "2023.12.28"]
[Round "5.1"]
[White "Nusrat Jahan, Alo"]
[Black "Wadifa, Ahmed"]
[Result "0-1"]
[ECO "B50"]
[WhiteElo "1778"]
[BlackElo "1758"]
[Annotator "NA"]
[PlyCount "104"]
[EventDate "2023.12.24"]
[EventType "swiss"]
[EventCountry "BAN"]
[SourceTitle "playchess.com"]
[Source "ChessBase"]
[SourceQuality "1"]
[TimeControl "5400+30"]

1. e4 {[%emt 0:00:49]} c5 {[%emt 0:01:08]} 2. Nf3 {[%emt 0:00:09]} e6 {[%emt 0:00:05]} 3. b3 {[%emt 0:00:08]} Nc6 {[%emt 0:03:35]} 4. Bb2 {[%emt 0:00:17]} d6 {[%emt 0:00:28]} 5. Nc3 {[%emt 0:00:45]} Nf6 {[%emt 0:00:21]} 6. d4 {[%emt 0:00:16]} cxd4 {[%emt 0:01:55]} 7. Nxd4 {[%emt 0:00:06]} Be7 {[%emt 0:01:01]} 8. Qd2 {[%emt 0:00:21]} O-O {[%emt 0:02:48]} 9. O-O-O {[%emt 0:01:23]} Bd7 {[%emt 0:16:57]} 10. Kb1 {[%emt 0:03:45]} Nxd4 {[%emt 0:04:22]} 11. Qxd4 {[%emt 0:00:32]} e5 {[%emt 0:00:33]} 12. Qd2 {[%emt 0:01:35]} Rb8 {[%emt 0:06:19]} 13. f3 {[%emt 0:11:06]} b5 {[%emt 0:03:05]} 14. Qf2 {[%emt 0:11:14]} a5 {[%emt 0:05:10]} 15. g4 {[%emt 0:02:37]} Bc6 {[%emt 0:04:28]} 16. Be2 {[%emt 0:08:37]} b4 {[%emt 0:02:56]} 17. g5 {[%emt 0:07:03]} bxc3 {[%emt 0:00:53]} 18. gxf6 {[%emt 0:00:06]} cxb2 {[%emt 0:02:05]} 19. fxe7 {[%emt 0:00:05]} Qxe7 {[%emt 0:00:04]} 20. Kxb2 {[%emt 0:03:08]} a4 {[%emt 0:02:28]} 21. Bc4 {[%emt 0:01:32]} Kh8 {[%emt 0:00:40]} 22. Qd2 {[%emt 0:00:42]} Rfd8 {[%emt 0:01:04]} 23. Bd5 {[%emt 0:01:56]} Bxd5 {[%emt 0:02:33]} 24. Qxd5 {[%emt 0:00:06]} axb3 {[%emt 0:00:40]} 25. axb3 {[%emt 0:01:28]} Qc7 {[%emt 0:01:17]} 26. c4 {[%emt 0:05:27]} Rdc8 {[%emt 0:01:53]} 27. Rc1 {[%emt 0:09:00]} Qb6 {[%emt 0:01:55]} 28. Qd3 {[%emt 0:00:21]} h6 {[%emt 0:02:56]} 29. Rhd1 {[%emt 0:01:00]} Rc6 {[%emt 0:00:26]} 30. Qc3 {[%emt 0:02:15]} Qb7 {[%emt 0:01:53]} 31. Rb1 {[%emt 0:02:25]} Qc8 {[%emt 0:03:26]} 32. Kc2 {[%emt 0:01:10]} f5 {[%emt 0:00:25]} 33. Qd3 {[%emt 0:01:11]} fxe4 {[%emt 0:00:21]} 34. fxe4 {[%emt 0:00:49]} Rcb6 {[%emt 0:01:16]} 35. Qg3 {[%emt 0:02:21]} Qb7 {[%emt 0:02:04]} 36. Rd5 {[%emt 0:02:29]} Qa7 {[%emt 0:02:08]} 37. Qc3 {[%emt 0:01:27]} Qb7 {[%emt 0:03:10]} 38. Qd3 {[%emt 0:00:22]} Qc7 {[%emt 0:00:39]} 39. Kc3 {[%emt 0:02:05]} Qa7 {[%emt 0:01:34]} 40. Rxd6 {[%emt 0:02:44]} Qa5+ {[%emt 0:00:48]} 41. Kc2 {[%emt 0:00:28]} Rxb3 {[%emt 0:00:20]} 42. Qxb3 {[%emt 0:02:23]} Rxb3 {[%emt 0:00:10]} 43. Rxb3 {[%emt 0:00:04]} Qc7 {[%emt 0:01:14]} 44. Rd5 {[%emt 0:02:48]} Qxc4+ {[%emt 0:00:04]} 45. Rc3 {[%emt 0:00:08]} Qxe4+ {[%emt 0:00:16]} 46. Rdd3 {[%emt 0:00:17]} Qa4+ {[%emt 0:01:57]} 47. Kc1 {[%emt 0:02:00]} Qf4+ {[%emt 0:00:07]} 48. Rd2 {[%emt 0:00:08]} e4 {[%emt 0:00:21]} 49. Kd1 {[%emt 0:00:17]} e3 {[%emt 0:00:39]} 50. Rc8+ {[%emt 0:01:37]} Kh7 {[%emt 0:00:03]} 51. Re2 {[%emt 0:00:09]} Qf1+ {[%emt 0:00:27]} 52. Re1 {[%emt 0:00:20]} Qd3+ {[%emt 0:00:02]} 0-1

[Event "41st Bangladesh U-20 Girls 2023"]
[Site "Dhaka"]
[Date "2023.12.28"]
[Round "5.2"]
[White "Kazi Zarin, Tasnim"]
[Black "Warsia, Khusbu"]
[Result "0-1"]
[ECO "C42"]
[WhiteElo "1748"]
[BlackElo "1661"]
[Annotator "NA"]
[PlyCount "50"]
[EventDate "2023.12.24"]
[EventType "swiss"]
[EventCountry "BAN"]
[SourceTitle "playchess.com"]
[Source "ChessBase"]
[SourceQuality "1"]
[TimeControl "5400+30"]

1. e4 {[%emt 0:02:03]} e5 {[%emt 0:00:10]} 2. Nf3 {[%emt 0:00:09]} Nf6 {[%emt 0:00:01]} 3. Nxe5 {[%emt 0:00:07]} d6 {[%emt 0:00:01]} 4. Nf3 {[%emt 0:00:07]} Nxe4 {[%emt 0:00:02]} 5. Nc3 {[%emt 0:00:05]} Nxc3 {[%emt 0:01:28]} 6. dxc3 {[%emt 0:00:07]} Be7 {[%emt 0:00:01]} 7. Be3 {[%emt 0:00:08]} Be6 {[%emt 0:13:49]} 8. Bd3 {[%emt 0:02:31]} c5 {[%emt 0:08:51]} 9. Qd2 {[%emt 0:04:20]} O-O {[%emt 0:00:48]} 10. h4 {[%emt 0:04:18]} Nd7 {[%emt 0:11:03]} 11. Ng5 {[%emt 0:14:46]} Nf6 {[%emt 0:05:01]} 12. Nxe6 {[%emt 0:04:10]} fxe6 {[%emt 0:00:20]} 13. f3 {[%emt 0:00:58]} b5 {[%emt 0:09:34]} 14. O-O-O {[%emt 0:08:06]} c4 {[%emt 0:01:01]} 15. Bf1 {[%emt 0:04:15]} Nd5 {[%emt 0:08:51]} 16. Bf2 {[%emt 0:06:47]} Bf6 {[%emt 0:02:51]} 17. g3 {[%emt 0:02:27]} Qa5 {[%emt 0:07:36]} 18. Bd4 {[%emt 0:24:59]} Qxa2 {[%emt 0:02:53]} 19. Qe2 {[%emt 0:00:49]} Rae8 {[%emt 0:01:17]} 20. Bh3 {[%emt 0:02:08]} Bxd4 {[%emt 0:05:26]} 21. cxd4 {[%emt 0:12:02]} Qa1+ {[%emt 0:00:34]} 22. Kd2 {[%emt 0:00:07]} Qxb2 {[%emt 0:00:01]} 23. Qe4 {[%emt 0:01:54]} Qb4+ {[%emt 0:01:21]} 24. Kc1 {[%emt 0:00:31]} Nc3 {[%emt 0:00:26]} 25. Bxe6+ {[%emt 0:01:11]} Kh8 {[%emt 0:00:02]} 0-1

[Event "41st Bangladesh U-20 Girls 2023"]
[Site "Dhaka"]
[Date "2023.12.29"]
[Round "6.1"]
[White "Wadifa, Ahmed"]
[Black "Warsia, Khusbu"]
[Result "1-0"]
[ECO "A01"]
[WhiteElo "1758"]
[BlackElo "1661"]
[Annotator "NA RC"]
[PlyCount "63"]
[EventDate "2023.12.24"]
[EventType "swiss"]
[EventCountry "BAN"]
[SourceTitle "playchess.com"]
[Source "ChessBase"]
[SourceQuality "1"]
[TimeControl "5400+30"]

1. b3 {[%emt 0:00:49]} e5 {[%emt 0:03:26]} 2. Bb2 {[%emt 0:00:12]} Nc6 {[%emt 0:00:01]} 3. c4 {[%emt 0:00:46]} f5 {[%emt 0:00:43]} 4. d3 {[%emt 0:02:31]} Bb4+ {[%emt 0:10:07]} 5. Nd2 {[%emt 0:01:29]} Nf6 {[%emt 0:00:10]} 6. a3 {[%emt 0:00:11]} Bxd2+ {[%emt 0:03:18]} 7. Qxd2 {[%emt 0:00:09]} O-O {[%emt 0:00:02]} 8. e3 {[%emt 0:07:13]} d5 {[%emt 0:02:11]} 9. cxd5 {[%emt 0:02:03]} Qxd5 {[%emt 0:00:31]} 10. Qc2 {[%emt 0:05:29]} Be6 {[%emt 0:14:48]} 11. Nf3 {[%emt 0:04:53]} Rfe8 {[%emt 0:05:57]} 12. b4 {[%emt 0:02:48]} a5 {[%emt 0:01:44]} 13. b5 {[%emt 0:04:41]} Qxb5 {[%emt 0:00:28]} 14. d4 {[%emt 0:00:52]} Qb3 {[%emt 0:00:02]} 15. Qxb3 {[%emt 0:00:20]} Bxb3 {[%emt 0:00:01]} 16. dxe5 {[%emt 1:04:04]} Ng4 {[%emt 0:14:57]} 17. Bb5 {[%emt 0:00:00]} Bd5 {[%emt 0:01:09]} 18. h3 {[%emt 0:00:00]} Bxf3 {[%emt 0:02:45]} 19. hxg4 {[%emt 0:00:00]} Bxg2 {[%emt 0:00:45]} 20. Rg1 {[%emt 0:00:00]} Be4 {[%emt 0:02:26]} 21. Ke2 {[%emt 0:00:00]} fxg4 {[%emt 0:03:10]} 22. Bc4+ {[%emt 0:00:00]} Kh8 {[%emt 0:01:30]} 23. Rxg4 {[%emt 0:00:00]} Bf5 {[%emt 0:01:25]} 24. Rg5 {[%emt 0:00:00]} Nxe5 {[%emt 0:30:54]} 25. Rag1 {[%emt 0:00:00]} Nxc4 {[%emt 0:00:00]} 26. Bxg7+ {[%emt 0:00:00]} Kg8 {[%emt 0:00:00]} 27. Rxf5 {[%emt 0:00:00]} Re6 {[%emt 0:00:00]} 28. Bf6+ {[%emt 0:00:00]} Kf8 {[%emt 0:00:00]} 29. Bh4+ {[%emt 0:00:00]} Ke8 {[%emt 0:00:00]} 30. Rg8+ {[%emt 0:00:00]} Kd7 {[%emt 0:00:00]} 31. Rxa8 {[%emt 0:00:00]} Nd6 {[%emt 0:00:00]} 32. Rh5 {[%emt 0:00:00]} 1-0

[Event "41st Bangladesh U-20 Girls 2023"]
[Site "Dhaka"]
[Date "2023.12.29"]
[Round "7.2"]
[White "Warsia, Khusbu"]
[Black "Jannatul, Preety"]
[Result "1-0"]
[ECO "B17"]
[WhiteElo "1661"]
[BlackElo "1465"]
[Annotator "NA"]
[PlyCount "154"]
[EventDate "2023.12.24"]
[EventType "swiss"]
[EventCountry "BAN"]
[SourceTitle "playchess.com"]
[Source "ChessBase"]
[SourceQuality "1"]
[TimeControl "5400+30"]

1. e4 {[%emt 0:00:19]} c6 {[%emt 0:00:14]} 2. d4 {[%emt 0:00:01]} d5 {[%emt 0:00:06]} 3. Nc3 {[%emt 0:00:02]} dxe4 {[%emt 0:00:14]} 4. Nxe4 {[%emt 0:00:01]} Nd7 {[%emt 0:00:18]} 5. c3 {[%emt 0:01:48]} Ngf6 {[%emt 0:00:30]} 6. Bd3 {[%emt 0:00:56]} Nxe4 {[%emt 1:32:08]} 7. Bxe4 {[%emt 0:00:02]} Nf6 {[%emt 0:00:00]} 8. Bf3 {[%emt 0:00:49]} Bf5 {[%emt 0:00:00]} 9. Ne2 {[%emt 0:00:56]} h6 {[%emt 0:00:00]} 10. Qb3 {[%emt 0:06:10]} Qb6 {[%emt 0:00:00]} 11. Ng3 {[%emt 0:08:03]} Bd3 {[%emt 0:00:00]} 12. Qd1 {[%emt 0:03:57]} Qa6 {[%emt 0:00:00]} 13. b3 {[%emt 0:04:43]} Rd8 {[%emt 0:00:00]} 14. Bb2 {[%emt 0:03:17]} e6 {[%emt 0:00:00]} 15. Qd2 {[%emt 0:01:40]} Nd5 {[%emt 0:00:00]} 16. a3 {[%emt 0:05:13]} Bd6 {[%emt 0:00:00]} 17. c4 {[%emt 0:05:51]} Nf4 {[%emt 0:00:00]} 18. Nh5 {[%emt 0:00:18]} Nxh5 {[%emt 0:00:00]} 19. Qxd3 {[%emt 0:00:17]} Nf6 {[%emt 0:00:00]} 20. O-O {[%emt 0:00:33]} O-O {[%emt 0:00:00]} 21. Qe3 {[%emt 0:09:22]} Rfe8 {[%emt 0:00:00]} 22. Rfe1 {[%emt 0:03:19]} Qa5 {[%emt 0:00:00]} 23. b4 {[%emt 0:12:18]} Qc7 {[%emt 0:00:00]} 24. h3 {[%emt 0:00:12]} Nh7 {[%emt 0:00:00]} 25. h4 {[%emt 0:08:12]} Nf6 {[%emt 0:00:00]} 26. Rad1 {[%emt 0:01:23]} a5 {[%emt 0:00:00]} 27. Qb3 {[%emt 0:02:55]} axb4 {[%emt 0:00:00]} 28. axb4 {[%emt 0:00:02]} Be7 {[%emt 0:00:00]} 29. g3 {[%emt 0:00:42]} Qb6 {[%emt 0:00:00]} 30. Bc3 {[%emt 0:03:05]} Bf8 {[%emt 0:01:19]} 31. Qb2 {[%emt 0:00:58]} Be7 {[%emt 0:00:14]} 32. Kg2 {[%emt 0:00:39]} Qc7 {[%emt 0:02:02]} 33. Qb3 {[%emt 0:01:24]} Qb6 {[%emt 0:01:31]} 34. d5 {[%emt 0:02:53]} cxd5 {[%emt 0:01:15]} 35. Bxf6 {[%emt 0:02:52]} dxc4 {[%emt 0:01:43]} 36. Rxd8 {[%emt 0:02:57]} Rxd8 {[%emt 0:01:41]} 37. Qxc4 {[%emt 0:00:02]} Bxf6 {[%emt 0:00:19]} 38. b5 {[%emt 0:01:50]} Be7 {[%emt 0:02:08]} 39. Re2 {[%emt 0:01:04]} Bf6 {[%emt 0:01:59]} 40. Rc2 {[%emt 0:00:35]} g5 {[%emt 0:01:15]} 41. hxg5 {[%emt 0:00:46]} hxg5 {[%emt 0:00:06]} 42. Bh5 {[%emt 0:02:12]} Qd6 {[%emt 0:01:30]} 43. Bf3 {[%emt 0:02:14]} b6 {[%emt 0:00:24]} 44. Qg4 {[%emt 0:01:41]} Kg7 {[%emt 0:00:32]} 45. Qe4 {[%emt 0:01:19]} Qd4 {[%emt 0:00:54]} 46. Qb7 {[%emt 0:00:35]} Rd7 {[%emt 0:00:17]} 47. Qc8 {[%emt 0:00:33]} Rd8 {[%emt 0:00:19]} 48. Qc6 {[%emt 0:00:50]} g4 {[%emt 0:00:25]} 49. Be2 {[%emt 0:01:41]} Qd5+ {[%emt 0:00:16]} 50. Kg1 {[%emt 0:00:19]} Qd4 {[%emt 0:01:11]} 51. Rc4 {[%emt 0:01:19]} Qd2 {[%emt 0:00:36]} 52. Rxg4+ {[%emt 0:00:05]} Kf8 {[%emt 0:00:20]} 53. Qf3 {[%emt 0:00:16]} Ke7 {[%emt 0:00:27]} 54. Rf4 {[%emt 0:00:04]} Qb2 {[%emt 0:00:17]} 55. Kg2 {[%emt 0:00:39]} Rd7 {[%emt 0:00:51]} 56. g4 {[%emt 0:00:21]} Qe5 {[%emt 0:00:16]} 57. Re4 {[%emt 0:00:23]} Qg5 {[%emt 0:00:33]} 58. Qa3+ {[%emt 0:00:09]} Ke8 {[%emt 0:00:30]} 59. Qa8+ {[%emt 0:00:24]} Ke7 {[%emt 0:00:41]} 60. Qa3+ {[%emt 0:00:02]} Ke8 {[%emt 0:00:10]} 61. Qb3 {[%emt 0:00:40]} Bd4 {[%emt 0:00:46]} 62. Qg3 {[%emt 0:01:10]} Bc5 {[%emt 0:00:19]} 63. Re5 {[%emt 0:00:30]} Qd2 {[%emt 0:00:37]} 64. Qf3 {[%emt 0:00:49]} Ke7 {[%emt 0:00:39]} 65. Rh5 {[%emt 0:00:08]} Qb2 {[%emt 0:00:25]} 66. Rh7 {[%emt 0:00:14]} Qf6 {[%emt 0:00:22]} 67. Qxf6+ {[%emt 0:02:06]} Kxf6 {[%emt 0:00:05]} 68. f4 {[%emt 0:00:32]} Ke7 {[%emt 0:00:50]} 69. Kf3 {[%emt 0:00:12]} Kf8 {[%emt 0:00:30]} 70. g5 {[%emt 0:00:05]} Rd8 {[%emt 0:00:41]} 71. Rh6 {[%emt 0:01:08]} Kg7 {[%emt 0:00:30]} 72. Rh1 {[%emt 0:00:08]} f6 {[%emt 0:00:36]} 73. gxf6+ {[%emt 0:00:13]} Kxf6 {[%emt 0:00:05]} 74. Rh6+ {[%emt 0:00:03]} Ke7 {[%emt 0:00:41]} 75. Bc4 {[%emt 0:00:08]} Rd6 {[%emt 0:00:26]} 76. Kg4 {[%emt 0:00:06]} Bd4 {[%emt 0:00:37]} 77. Kg5 {[%emt 0:00:15]} Be3 {[%emt 0:01:20]} 1-0

[Event "41st Bangladesh U-20 Girls 2023"]
[Site "Dhaka"]
[Date "2023.12.30"]
[Round "8.1"]
[White "Khondakar Aneeka, Mowla"]
[Black "Wadifa, Ahmed"]
[Result "0-1"]
[ECO "B43"]
[WhiteElo "1127"]
[BlackElo "1758"]
[Annotator "NA"]
[PlyCount "78"]
[EventDate "2023.12.24"]
[EventType "swiss"]
[EventCountry "BAN"]
[SourceTitle "playchess.com"]
[Source "ChessBase"]
[SourceQuality "1"]
[TimeControl "5400+30"]

1. e4 {[%emt 0:00:05]} c5 {[%emt 0:00:07]} 2. Nf3 {[%emt 0:00:06]} e6 {[%emt 0:00:03]} 3. d4 {[%emt 0:00:08]} cxd4 {[%emt 0:00:06]} 4. Nxd4 {[%emt 1:32:11]} a6 {[%emt 0:00:04]} 5. Nc3 {[%emt 0:00:00]} Qc7 {[%emt 0:00:07]} 6. Be3 {[%emt 0:00:00]} Bb4 {[%emt 0:00:06]} 7. Bd2 {[%emt 0:00:00]} Be7 {[%emt 0:00:09]} 8. Bd3 {[%emt 0:00:00]} Nf6 {[%emt 0:00:07]} 9. O-O {[%emt 0:00:00]} Nc6 {[%emt 0:01:33]} 10. Nxc6 {[%emt 0:00:00]} bxc6 {[%emt 0:00:07]} 11. Rb1 {[%emt 0:00:00]} O-O {[%emt 0:02:28]} 12. Kh1 {[%emt 0:00:00]} d5 {[%emt 0:04:52]} 13. exd5 {[%emt 0:00:00]} cxd5 {[%emt 0:00:18]} 14. Qf3 {[%emt 0:00:00]} Bb7 {[%emt 0:00:41]} 15. Qe2 {[%emt 0:00:00]} e5 {[%emt 0:00:39]} 16. f3 {[%emt 0:00:00]} Rfe8 {[%emt 0:03:23]} 17. Qf2 {[%emt 0:00:00]} e4 {[%emt 0:08:33]} 18. fxe4 {[%emt 0:00:00]} dxe4 {[%emt 0:00:02]} 19. Be2 {[%emt 0:00:00]} Bc5 {[%emt 0:01:18]} 20. Qf4 {[%emt 0:00:00]} Qxf4 {[%emt 0:03:20]} 21. Bxf4 {[%emt 0:00:00]} Rac8 {[%emt 0:03:25]} 22. Nd1 {[%emt 0:00:00]} Nd5 {[%emt 0:01:53]} 23. Bg3 {[%emt 0:00:00]} g6 {[%emt 0:03:52]} 24. Bc4 {[%emt 0:00:00]} Bd4 {[%emt 0:02:32]} 25. Bxd5 {[%emt 0:00:00]} Bxd5 {[%emt 0:00:08]} 26. c3 {[%emt 0:00:00]} Bxa2 {[%emt 0:01:15]} 27. Ra1 {[%emt 0:00:00]} Bc4 {[%emt 0:00:01]} 28. Re1 {[%emt 0:00:00]} Bb6 {[%emt 0:05:34]} 29. Ne3 {[%emt 0:00:00]} Bxe3 {[%emt 0:00:13]} 30. Rxe3 {[%emt 0:00:00]} g5 {[%emt 0:00:09]} 31. Bd6 {[%emt 0:00:00]} Re6 {[%emt 0:00:42]} 32. Bb4 {[%emt 0:00:00]} f5 {[%emt 0:00:12]} 33. g3 {[%emt 0:00:00]} f4 {[%emt 0:01:17]} 34. Ree1 {[%emt 0:00:00]} e3 {[%emt 0:00:34]} 35. gxf4 {[%emt 0:00:00]} Bd5+ {[%emt 0:00:54]} 36. Kg1 {[%emt 0:00:00]} gxf4 {[%emt 0:00:04]} 37. Rad1 {[%emt 0:00:00]} Rg6+ {[%emt 0:00:34]} 38. Kf1 {[%emt 0:00:00]} Bc4+ {[%emt 0:00:03]} 39. Re2 {[%emt 0:00:00]} f3 {[%emt 0:00:09]} 0-1

[Event "41st Bangladesh U-20 Girls 2023"]
[Site "Dhaka"]
[Date "2023.12.30"]
[Round "8.2"]
[White "Nusrat Jahan, Alo"]
[Black "Kazi Zarin, Tasnim"]
[Result "0-1"]
[ECO "C54"]
[WhiteElo "1778"]
[BlackElo "1748"]
[Annotator "NA"]
[PlyCount "65"]
[EventDate "2023.12.24"]
[EventType "swiss"]
[EventCountry "BAN"]
[SourceTitle "playchess.com"]
[Source "ChessBase"]
[SourceQuality "1"]
[TimeControl "5400+30"]

1. e4 {[%emt 0:00:04]} e5 {[%emt 0:02:30]} 2. Nf3 {[%emt 0:00:11]} Nc6 {[%emt 0:00:05]} 3. Bc4 {[%emt 0:00:05]} Bc5 {[%emt 0:00:05]} 4. c3 {[%emt 0:00:05]} Nf6 {[%emt 0:00:06]} 5. d4 {[%emt 0:00:44]} exd4 {[%emt 0:00:06]} 6. e5 {[%emt 0:01:23]} d5 {[%emt 0:00:06]} 7. Bb5 {[%emt 0:00:05]} Ne4 {[%emt 0:00:07]} 8. cxd4 {[%emt 0:00:05]} Bb6 {[%emt 0:00:05]} 9. Nc3 {[%emt 0:01:11]} O-O {[%emt 0:00:12]} 10. Be3 {[%emt 0:00:45]} Bg4 {[%emt 0:00:08]} 11. Qb3 {[%emt 0:01:38]} Ne7 {[%emt 0:06:48]} 12. Bd3 {[%emt 0:05:03]} c5 {[%emt 0:05:55]} 13. Bxe4 {[%emt 0:20:14]} dxe4 {[%emt 0:08:39]} 14. Nxe4 {[%emt 0:04:01]} cxd4 {[%emt 0:05:02]} 15. Bg5 {[%emt 0:05:06]} Qd5 {[%emt 0:06:31]} 16. Qxd5 {[%emt 0:09:07]} Nxd5 {[%emt 0:00:05]} 17. Ned2 {[%emt 0:09:19]} Rac8 {[%emt 0:10:41]} 18. O-O {[%emt 0:04:53]} Rc2 {[%emt 0:04:19]} 19. b3 {[%emt 0:00:38]} Nc3 {[%emt 0:02:22]} 20. a3 {[%emt 0:07:51]} Re8 {[%emt 0:08:45]} 21. h3 {[%emt 0:01:49]} Bxf3 {[%emt 0:10:27]} 22. Nxf3 {[%emt 0:00:06]} h6 {[%emt 0:00:10]} 23. Bh4 {[%emt 0:05:46]} d3 {[%emt 0:03:41]} 24. Ne1 {[%emt 0:00:05]} Rd2 {[%emt 0:01:20]} 25. Kh1 {[%emt 0:01:46]} g5 {[%emt 0:01:21]} 26. Bg3 {[%emt 0:00:14]} Ne4 {[%emt 0:00:42]} 27. Nf3 {[%emt 0:01:37]} Rb2 {[%emt 0:04:23]} 28. Rab1 {[%emt 0:04:13]} Rxb1 {[%emt 0:02:47]} 29. Re1 {[%emt 0:16:56]} Rd1 30. Rxd1 {[%emt 0:00:00]} d2 {[%emt 0:00:52]} 31. Bh2 Bxf2 {[%emt 0:03:11]} 32. Rf1 {[%emt 0:00:00]} Rc8 {[%emt 0:03:18]} 33. Ne1 {[%emt 0:00:00]} 0-1

[Event "41st Bangladesh U-20 Girls 2023"]
[Site "Dhaka"]
[Date "2023.12.31"]
[Round "9.1"]
[White "Wadifa, Ahmed"]
[Black "Jannatul, Preety"]
[Result "1/2-1/2"]
[ECO "B13"]
[WhiteElo "1758"]
[BlackElo "1465"]
[Annotator "NA COMBH"]
[PlyCount "57"]
[EventDate "2023.12.24"]
[EventType "swiss"]
[EventCountry "BAN"]
[SourceTitle "playchess.com"]
[Source "ChessBase"]
[SourceQuality "1"]
[TimeControl "5400+30"]

1. e4 {[%emt 0:04:47]} c6 {[%emt 0:00:01]} 2. d4 {[%emt 0:00:05]} d5 {[%emt 0:00:04]} 3. exd5 {[%emt 0:00:06]} cxd5 {[%emt 0:00:05]} 4. Bd3 {[%emt 0:00:04]} Nf6 {[%emt 0:00:09]} 5. h3 {[%emt 0:00:05]} Nc6 {[%emt 0:00:26]} 6. c3 {[%emt 0:00:06]} h6 {[%emt 0:00:28]} 7. Nf3 {[%emt 0:00:27]} e6 {[%emt 0:00:09]} 8. Bf4 {[%emt 0:00:26]} Bd6 {[%emt 0:00:45]} 9. Bxd6 {[%emt 0:00:25]} Qxd6 {[%emt 0:00:05]} 10. Na3 {[%emt 0:02:13]} a6 {[%emt 0:02:31]} 11. Nc2 {[%emt 0:01:13]} Nh5 {[%emt 0:03:59]} 12. Ne3 {[%emt 0:08:12]} Nf4 {[%emt 0:05:49]} 13. Bc2 {[%emt 0:01:03]} e5 {[%emt 0:06:20]} 14. g3 {[%emt 0:07:25]} exd4 {[%emt 0:13:26]} 15. gxf4 {[%emt 0:03:11]} dxe3 {[%emt 0:01:13]} 16. fxe3 {[%emt 0:00:07]} Be6 {[%emt 0:06:12]} 17. Nd4 {[%emt 0:09:33]} O-O-O {[%emt 0:09:01]} 18. Qd2 {[%emt 0:01:42]} Na5 {[%emt 0:05:44]} 19. Bd3 {[%emt 0:02:27]} Rhe8 {[%emt 0:03:39]} 20. O-O-O {[%emt 0:01:21]} Kb8 {[%emt 0:02:13]} 21. Kb1 {[%emt 0:01:02]} Nc6 {[%emt 0:01:43]} 22. Nxc6+ {[%emt 0:02:32]} Qxc6 {[%emt 0:00:30]} 23. Bc2 {[%emt 0:02:35]} Qc8 {[%emt 0:02:02]} 24. Qg2 {[%emt 0:11:05]} g6 {[%emt 0:04:01]} 25. Rd4 {[%emt 0:04:47]} Bf5 {[%emt 0:02:12]} 26. Rxd5 {[%emt 0:01:28]} Bxc2+ {[%emt 0:01:33]} 27. Kxc2 {[%emt 0:00:03]} Rxe3 {[%emt 0:00:59]} 28. Rxd8 {[%emt 0:03:39]} Qxd8 {[%emt 0:01:49]} 29. Rd1 {[%emt 0:01:18]} 1/2-1/2

[Event "41st Bangladesh U-20 Girls 2023"]
[Site "Dhaka"]
[Date "2023.12.31"]
[Round "9.2"]
[White "Ahona, Dey"]
[Black "Warsia, Khusbu"]
[Result "1/2-1/2"]
[ECO "D02"]
[WhiteElo "1390"]
[BlackElo "1661"]
[Annotator "NA COMBH"]
[PlyCount "35"]
[EventDate "2023.12.24"]
[EventType "swiss"]
[EventCountry "BAN"]
[SourceTitle "playchess.com"]
[Source "ChessBase"]
[SourceQuality "1"]
[TimeControl "5400+30"]

1. d4 {[%emt 0:00:06]} Nf6 {[%emt 0:00:01]} 2. Bf4 {[%emt 0:00:11]} e6 {[%emt 0:00:01]} 3. e3 {[%emt 0:00:12]} c5 {[%emt 0:00:01]} 4. c3 {[%emt 0:00:20]} d5 {[%emt 0:01:54]} 5. Nf3 {[%emt 0:02:20]} a6 {[%emt 0:00:44]} 6. Bd3 {[%emt 0:00:24]} Be7 {[%emt 0:00:19]} 7. Nbd2 {[%emt 0:00:17]} O-O {[%emt 0:00:49]} 8. Ne5 {[%emt 0:01:46]} Nc6 {[%emt 0:01:23]} 9. Ndf3 {[%emt 0:01:20]} cxd4 {[%emt 0:09:10]} 10. exd4 {[%emt 0:01:44]} Ne4 {[%emt 0:08:00]} 11. Nxc6 {[%emt 0:04:30]} bxc6 {[%emt 0:00:36]} 12. Bxe4 {[%emt 0:00:06]} dxe4 {[%emt 0:00:06]} 13. Ne5 {[%emt 0:00:08]} Bb7 {[%emt 0:05:14]} 14. Qe2 {[%emt 0:03:35]} c5 {[%emt 1:09:12]} 15. Rd1 {[%emt 0:02:14]} Qc8 {[%emt 0:00:00]} 16. Qg4 {[%emt 0:14:03]} f5 {[%emt 0:00:00]} 17. Qg3 {[%emt 0:04:59]} Rd8 {[%emt 0:00:00]} 18. Be3 {[%emt 0:07:41]} 1/2-1/2